fUSD/lending_fUSD_20240618
["ID","MTS","AMOUNT","RATE_DAILY","PERIOD"]
[329803224,1718682652382,-1627.6,0.00021917,2]
[329803225,1718682652392,-1773.58,0.00021917,2]
[329803226,1718682652402,-500.0,0.00021917,2]
[329803227,1718682652412,-500.0,0.00021917,2]
[329803228,1718682652422,-500.0,0.00021917,2]
[329803229,1718682652432,-500.0,0.00021917,2]
[329803230,1718682652444,-500.0,0.00021917,2]
[329803231,1718682652458,-3961.24,0.00021917,2]
[329803232,1718682652468,-500.0,0.00021917,2]
[329803233,1718682652478,-716.07,0.00021917,2]
[329803234,1718682652488,-500.0,0.00021917,2]
[329803235,1718682652499,-500.0,0.00021917,2]
[329803236,1718682652508,-2392.42,0.00021917,2]
[329803237,1718682652518,-597.79,0.00021917,2]
[329803238,1718682652528,-3060.74,0.00021917,2]
[329803239,1718682652538,-500.0,0.00021917,2]
[329803240,1718682652548,-500.0,0.00021917,2]
[329803241,1718682652558,-500.0,0.00021917,2]
[329803242,1718682652568,-4956.6,0.00021917,2]
[329803243,1718682652578,-1361.07,0.00021917,2]
[329803244,1718682652588,-6046.79,0.00021917,2]
[329803245,1718682652598,-500.0,0.00021917,2]
[329803246,1718682652607,-500.0,0.00021917,2]
[329803247,1718682652619,-500.0,0.00021917,2]
[329803248,1718682652628,-484.3139618,0.00021917,2]
[329803249,1718682652638,-702.61,0.00021917,2]
[329803250,1718682652648,-6069.34,0.00021917,2]
[329803251,1718682652657,-153.24183432,0.00021917,2]
[329803252,1718682652667,-994.27,0.00021917,2]
[329803253,1718682652676,-637.43,0.00021917,2]
[329803254,1718682652686,-500.0,0.00021917,2]
[329803255,1718682652695,-151.0,0.00021917,2]
[329803256,1718682652707,-156.677496,0.00021917,2]
[329803257,1718682652716,-500.0,0.00021917,2]
[329803258,1718682652726,-626.75,0.00021917,2]
[329803259,1718682652736,-151.0,0.00021917,2]
[329803260,1718682652745,-151.0,0.00021917,2]
[329803261,1718682652755,-23024.27,0.00021917,2]
[329803262,1718682652764,-151.0,0.00021917,2]
[329803263,1718682652774,-500.0,0.00021917,2]
[329803264,1718682652784,-151.0,0.00021917,2]
[329803265,1718682652794,-500.0,0.00021917,2]
[329803266,1718682652803,-500.0,0.00021917,2]
[329803267,1718682652813,-500.0,0.00021917,2]
[329803268,1718682652823,-500.0,0.00021917,2]
[329803269,1718682652834,-615.95,0.00021917,2]
[329803270,1718682652843,-603.38124709,0.00021917,2]
[329803271,1718682652853,-151.0,0.00021917,2]
[329803272,1718682652864,-500.0,0.00021917,2]
[329803273,1718682652875,-500.0,0.00021917,2]
[329803274,1718682652885,-151.0,0.00021917,2]
[329803275,1718682652894,-500.0,0.00021917,2]
[329803276,1718682652905,-1597.76,0.00021917,2]
[329803277,1718682652915,-151.0,0.00021917,2]
[329803278,1718682652925,-1078.25,0.00021917,2]
[329803279,1718682652935,-151.0,0.00021917,2]
[329803280,1718682652944,-500.0,0.00021917,2]
[329803281,1718682652955,-151.0,0.00021917,2]
[329803282,1718682652964,-172.263497,0.00021917,2]
[329803283,1718682652973,-500.0,0.00021917,2]
[329803284,1718682652982,-2492.55,0.00021917,2]
[329803285,1718682652992,-1122.58,0.00021917,2]
[329803286,1718682653003,-500.0,0.00021917,2]
[329803287,1718682653012,-500.0,0.00021917,2]
[329803288,1718682653022,-1781.54,0.00021917,2]
[329803289,1718682653032,-1420.79,0.00021917,2]
[329803290,1718682653042,-2490.2,0.00021917,2]
[329803291,1718682653053,-500.0,0.00021917,2]
[329803292,1718682653064,-2295.93,0.00021917,2]
[329803293,1718682653074,-818.79,0.00021917,2]
[329803294,1718682653085,-500.0,0.00021917,2]
[329803295,1718682653096,-500.0,0.00021917,2]
[329803296,1718682653105,-1828.62,0.00021917,2]
[329803297,1718682653115,-500.0,0.00021917,2]
[329803298,1718682653125,-1123.59,0.00021917,2]
[329803299,1718682653134,-500.0,0.00021917,2]
[329803300,1718682653144,-501.04350487,0.00021917,2]
[329803301,1718682653154,-1191.73,0.00021917,2]
[329803302,1718682653163,-500.0,0.00021917,2]
[329803303,1718682653173,-500.0,0.00021917,2]
[329803304,1718682653183,-1757.94,0.00021917,2]
[329803305,1718682653192,-500.0,0.00021917,2]
[329803306,1718682653204,-500.0,0.00021917,2]
[329803307,1718682653214,-500.0,0.00021917,2]
[329803308,1718682653224,-501.31936488,0.00021917,2]
[329803309,1718682653233,-1392.38,0.00021917,2]
[329803310,1718682653243,-500.0,0.00021917,2]
[329803311,1718682653253,-1034.27,0.00021917,2]
[329803312,1718682653262,-500.0,0.00021917,2]
[329803313,1718682653272,-7077.28,0.00021917,2]
[329803314,1718682653282,-1192.21,0.00021917,2]
[329803315,1718682653292,-500.0,0.00021917,2]
[329803316,1718682653307,-1713.03,0.00021917,2]
[329803317,1718682653317,-500.0,0.00021917,2]
[329803318,1718682653516,-1990.95,0.00021917,2]
[329803319,1718682653526,-1339.88,0.00021917,2]
[329803320,1718682653536,-5406.84,0.00021917,2]
[329803321,1718682653545,-500.0,0.00021917,2]
[329803322,1718682653555,-500.0,0.00021917,2]
[329803323,1718682653564,-2928.54,0.00021917,2]
[329803324,1718682653574,-151.0,0.00021917,2]
[329803325,1718682653583,-500.0,0.00021917,2]
[329803326,1718682653593,-151.0,0.00021917,2]
[329803327,1718682653602,-151.0,0.00021917,2]
[329803328,1718682653612,-602.16,0.00021917,2]
[329803329,1718682653622,-500.0,0.00021917,2]
[329803330,1718682653631,-290.021797,0.00021917,2]
[329803331,1718682653640,-290.021797,0.00021917,2]
[329803332,1718682653650,-627.75,0.00021917,2]
[329803333,1718682653659,-290.021797,0.00021917,2]
[329803334,1718682653668,-500.0,0.00021917,2]
[329803335,1718682653678,-290.021797,0.00021917,2]
[329803336,1718682653687,-290.021797,0.00021917,2]
[329803337,1718682653696,-290.021797,0.00021917,2]
[329803338,1718682653708,-740.25,0.00021917,2]
[329803339,1718682653717,-500.0,0.00021917,2]
[329803340,1718682653726,-1338.09,0.00021917,2]
[329803341,1718682653735,-2917.23,0.00021917,2]
[329803342,1718682653745,-500.0,0.00021917,2]
[329803343,1718682653754,-904.31,0.00021917,2]
[329803344,1718682653763,-500.0,0.00021917,2]
[329803345,1718682653773,-500.0,0.00021917,2]
[329803346,1718682653782,-1459.47,0.00021917,2]
[329803347,1718682653792,-941.21,0.00021917,2]
[329803348,1718682653801,-7752.95,0.00021917,2]
[329803349,1718682653811,-500.0,0.00021917,2]
[329803350,1718682653820,-521.99096205,0.00021917,2]
[329803351,1718682653830,-519.60217239,0.00021917,2]
[329803352,1718682653840,-3111.04,0.00021917,2]
[329803353,1718682653849,-500.0,0.00021917,2]
[329803354,1718682653858,-500.0,0.00021917,2]
[329803355,1718682653868,-3427.34,0.00021917,2]
[329803356,1718682653878,-500.0,0.00021917,2]
[329803357,1718682653887,-500.0,0.00021917,2]
[329803358,1718682653896,-529.14524383,0.00021917,2]
[329803359,1718682653906,-500.0,0.00021917,2]
[329803360,1718682653915,-500.0,0.00021917,2]
[329803361,1718682653925,-500.0,0.00021917,2]
[329803362,1718682653934,-285.18310589,0.00021917,2]
[329803363,1718682653943,-1119.1,0.00021917,2]
[329803364,1718682653954,-500.0,0.00021917,2]
[329803365,1718682653963,-2475.34,0.00021917,2]
[329803366,1718682653973,-891.95,0.00021917,2]
[329803367,1718682653982,-500.0,0.00021917,2]
[329803368,1718682653991,-2243.62,0.00021917,2]
[329803369,1718682654000,-5774.79,0.00021917,2]
[329803370,1718682654009,-676.52,0.00021917,2]
[329803371,1718682654019,-883.38,0.00021917,2]
[329803372,1718682654028,-500.0,0.00021917,2]
[329803373,1718682654037,-883.38,0.00021917,2]
[329803374,1718682654046,-151.0,0.00021917,2]
[329803375,1718682654056,-506.11831415,0.00021917,2]
[329803376,1718682654065,-151.0,0.00021917,2]
[329803377,1718682654074,-883.38,0.00021917,2]
[329803378,1718682654083,-883.38,0.00021917,2]
[329803379,1718682654092,-151.0,0.00021917,2]
[329803380,1718682654102,-500.0,0.00021917,2]
[329803381,1718682654111,-883.38,0.00021917,2]
[329803382,1718682654121,-1676.41,0.00021917,2]
[329803383,1718682654130,-883.38,0.00021917,2]
[329803384,1718682654140,-500.0,0.00021917,2]
[329803385,1718682654149,-2257.54,0.00021917,2]
[329803386,1718682654159,-4877.0,0.00021917,2]
[329803387,1718682654169,-1820.32,0.00021917,2]
[329803388,1718682654178,-500.0,0.00021917,2]
[329803389,1718682654188,-500.0,0.00021917,2]
[329803390,1718682654198,-200.0,0.00021917,2]
[329803391,1718682654208,-500.0,0.00021917,2]
[329803392,1718682654219,-151.0,0.00021917,2]
[329803393,1718682654229,-500.0,0.00021917,2]
[329803394,1718682654238,-151.0,0.00021917,2]
[329803395,1718682654247,-151.0,0.00021917,2]
[329803396,1718682654257,-1054.01,0.00021917,2]
[329803397,1718682654267,-500.0,0.00021917,2]
[329803398,1718682654276,-502.66953187,0.00021917,2]
[329803399,1718682654285,-500.0,0.00021917,2]
[329803400,1718682654299,-1262.25,0.00021917,2]
[329803401,1718682654309,-500.0,0.00021917,2]
[329803402,1718682654319,-500.0,0.00021917,2]
[329803403,1718682654328,-500.0,0.00021917,2]
[329803404,1718682654339,-517.91948251,0.00021917,2]
[329803405,1718682654348,-500.0,0.00021917,2]
[329803406,1718682654357,-2319.71,0.00021917,2]
[329803407,1718682654367,-500.0,0.00021917,2]
[329803408,1718682654381,-1137.97,0.00021917,2]
[329803409,1718682654391,-500.0,0.00021917,2]
[329803410,1718682654400,-500.0,0.00021917,2]
[329803411,1718682654410,-500.0,0.00021917,2]
[329803412,1718682654419,-500.0,0.00021917,2]
[329803413,1718682654428,-1285.09,0.00021917,2]
[329803414,1718682654438,-500.0,0.00021917,2]
[329803415,1718682654447,-557.34980267,0.00021917,2]
[329803416,1718682654458,-500.0,0.00021917,2]
[329803417,1718682654468,-10143.93,0.00021917,2]
[329803418,1718682654478,-500.0,0.00021917,2]
[329803419,1718682654488,-1328.96,0.00021917,2]
[329803420,1718682654497,-500.0,0.00021917,2]
[329803421,1718682654507,-2813.25,0.00021917,2]
[329803422,1718682654516,-500.0,0.00021917,2]
[329803423,1718682654526,-500.0,0.00021917,2]
[329803424,1718682654535,-1380.45,0.00021917,2]
[329803425,1718682654545,-500.0,0.00021917,2]
[329803426,1718682654554,-587.19415094,0.00021917,2]
[329803427,1718682654564,-2673.5,0.00021917,2]
[329803428,1718682654573,-500.0,0.00021917,2]
[329803429,1718682654583,-3014.84,0.00021917,2]
[329803430,1718682654592,-726.56,0.00021917,2]
[329803431,1718682654601,-500.0,0.00021917,2]
[329803432,1718682654611,-579.42736886,0.00021917,2]
[329803433,1718682654620,-500.0,0.00021917,2]
[329803434,1718682654630,-500.0,0.00021917,2]
[329803435,1718682654639,-500.0,0.00021917,2]
[329803436,1718682654649,-927.72,0.00021917,2]
[329803437,1718682654662,-500.0,0.00021917,2]
[329803438,1718682654672,-151.0,0.00021917,2]
[329803439,1718682654682,-500.0,0.00021917,2]
[329803440,1718682654691,-3736.73,0.00021917,2]
[329803441,1718682654702,-151.0,0.00021917,2]
[329803442,1718682654713,-500.0,0.00021917,2]
[329803443,1718682654723,-5018.67,0.00021917,2]
[329803444,1718682654733,-151.0,0.00021917,2]
[329803445,1718682654743,-1063.6,0.00021917,2]
[329803446,1718682654752,-543.62147792,0.00021917,2]
[329803447,1718682654762,-500.0,0.00021917,2]
[329803448,1718682654772,-500.0,0.00021917,2]
[329803449,1718682654781,-605.55418885,0.00021917,2]
[329803450,1718682654792,-500.0,0.00021917,2]
[329803451,1718682654801,-2100.97,0.00021917,2]
[329803452,1718682654810,-500.0,0.00021917,2]
[329803453,1718682654820,-1025.33,0.00021917,2]
[329803454,1718682654830,-1315.61,0.00021917,2]
[329803455,1718682654839,-9770.64,0.00021917,2]
[329803456,1718682654849,-500.0,0.00021917,2]
[329803457,1718682654859,-500.0,0.00021917,2]
[329803458,1718682654868,-3399.0,0.00021917,2]
[329803459,1718682654878,-500.0,0.00021917,2]
[329803460,1718682654887,-1290.61,0.00021917,2]
[329803461,1718682654897,-500.0,0.00021917,2]
[329803462,1718682654906,-500.0,0.00021917,2]
[329803463,1718682654916,-634.18,0.00021917,2]
[329803464,1718682654926,-500.0,0.00021917,2]
[329803465,1718682654936,-500.0,0.00021917,2]
[329803466,1718682654945,-2353.19,0.00021917,2]
[329803467,1718682654956,-4866.84,0.00021917,2]
[329803468,1718682654966,-604.29120958,0.00021917,2]
[329803469,1718682654975,-595.06714942,0.00021917,2]
[329803470,1718682654985,-1523.64,0.00021917,2]
[329803471,1718682654995,-1106.64,0.00021917,2]
[329803472,1718682655006,-500.0,0.00021917,2]
[329803473,1718682655016,-500.0,0.00021917,2]
[329803474,1718682655026,-792.43,0.00021917,2]
[329803475,1718682655035,-500.0,0.00021917,2]
[329803476,1718682655045,-500.0,0.00021917,2]
[329803477,1718682655055,-511.25499474,0.00021917,2]
[329803478,1718682655063,-3119.89,0.00021917,2]
[329803479,1718682655073,-4312.81,0.00021917,2]
[329803480,1718682655082,-3474.59,0.00021917,2]
[329803481,1718682655093,-500.0,0.00021917,2]
[329803482,1718682655103,-1067.63,0.00021917,2]
[329803483,1718682655112,-500.0,0.00021917,2]
[329803484,1718682655121,-999.92,0.00021917,2]
[329803485,1718682655131,-500.0,0.00021917,2]
[329803486,1718682655140,-500.0,0.00021917,2]
[329803487,1718682655149,-500.0,0.00021917,2]
[329803488,1718682655159,-2354.82,0.00021917,2]
[329803489,1718682655168,-984.15,0.00021917,2]
[329803490,1718682655177,-3829.63,0.00021917,2]
[329803491,1718682655186,-1938.31,0.00021917,2]
[329803492,1718682655195,-500.0,0.00021917,2]
[329803493,1718682655207,-500.0,0.00021917,2]
[329803494,1718682655217,-500.0,0.00021917,2]
[329803495,1718682655226,-2382.92,0.00021917,2]
[329803496,1718682655235,-500.0,0.00021917,2]
[329803497,1718682655245,-500.0,0.00021917,2]
[329803498,1718682655254,-4802.61,0.00021917,2]
[329803499,1718682655263,-723.34,0.00021917,2]
[329803500,1718682655273,-914.8,0.00021917,2]
[329803501,1718682655283,-4638.23,0.00021917,2]
[329803502,1718682655294,-2310.84,0.00021917,2]
[329803503,1718682655306,-500.0,0.00021917,2]
[329803504,1718682655317,-1712.32,0.00021917,2]
[329803505,1718682655327,-500.0,0.00021917,2]
[329803506,1718682655338,-500.0,0.00021917,2]
[329803507,1718682655347,-7408.89,0.00021917,2]
[329803508,1718682655356,-500.0,0.00021917,2]
[329803509,1718682655365,-151.0,0.00021917,2]
[329803510,1718682655377,-151.0,0.00021917,2]
[329803511,1718682655387,-151.0,0.00021917,2]
[329803512,1718682655397,-562.38624595,0.00021917,2]
[329803513,1718682655406,-500.0,0.00021917,2]
[329803514,1718682655415,-151.0,0.00021917,2]
[329803515,1718682655424,-2735.76,0.00021917,2]
[329803516,1718682655434,-500.0,0.00021917,2]
[329803517,1718682655443,-500.0,0.00021917,2]
[329803518,1718682655453,-2394.26,0.00021917,2]
[329803519,1718682655465,-500.0,0.00021917,2]
[329803520,1718682655475,-500.0,0.00021917,2]
[329803521,1718682655484,-2484.9,0.00021917,2]
[329803522,1718682655493,-500.0,0.00021917,2]
[329803523,1718682655503,-500.0,0.00021917,2]
[329803524,1718682655512,-1852.65,0.00021917,2]
[329803525,1718682655522,-4265.3,0.00021917,2]
[329803526,1718682655531,-2346.11,0.00021917,2]
[329803527,1718682655541,-852.69,0.00021917,2]
[329803528,1718682655550,-1031.71,0.00021917,2]
[329803529,1718682655560,-221.66223777,0.00021917,2]
[329803530,1718682655570,-2140.97,0.00021917,2]
[329803531,1718682655580,-500.0,0.00021917,2]
[329803532,1718682655590,-500.0,0.00021917,2]
[329803533,1718682655600,-500.0,0.00021917,2]
[329803534,1718682655610,-630.2046621,0.00021917,2]
[329803535,1718682655619,-2402.2,0.00021917,2]
[329803536,1718682655628,-500.0,0.00021917,2]
[329803537,1718682655638,-500.0,0.00021917,2]
[329803538,1718682655648,-500.0,0.00021917,2]
[329803539,1718682655657,-912.12,0.00021917,2]
[329803540,1718682655666,-500.0,0.00021917,2]
[329803541,1718682655675,-4422.65,0.00021917,2]
[329803542,1718682655684,-1203.74,0.00021917,2]
[329803543,1718682655694,-500.0,0.00021917,2]
[329803544,1718682655704,-544.52321956,0.00021917,2]
[329803545,1718682655714,-1401.62,0.00021917,2]
[329803546,1718682655724,-502.7010085,0.00021917,2]
[329803547,1718682655734,-610.61,0.00021917,2]
[329803548,1718682655743,-1976.11,0.00021917,2]
[329803549,1718682655753,-500.0,0.00021917,2]
[329803550,1718682655762,-1181.96,0.00021917,2]
[329803551,1718682655771,-571.09,0.00021917,2]
[329803552,1718682655781,-155.28135919,0.00021917,2]
[329803553,1718682655790,-2850.11,0.00021917,2]
[329803554,1718682655799,-373.6168713,0.00021917,2]
[329803555,1718682655808,-4422.59,0.00021917,2]
[329803556,1718682655818,-827.39,0.00021917,2]
[329803557,1718682655827,-525.31523945,0.00021917,2]
[329803558,1718682655836,-1913.02,0.00021917,2]
[329803559,1718682655846,-500.0,0.00021917,2]
[329803560,1718682655855,-12979.46,0.00021917,2]
[329803561,1718682655866,-500.0,0.00021917,2]
[329803562,1718682655875,-8710.27,0.00021917,2]
[329803563,1718682655884,-1255.97,0.00021917,2]
[329803564,1718682655893,-3084.98,0.00021917,2]
[329803565,1718682655903,-522.52943035,0.00021917,2]
[329803566,1718682655912,-991.73,0.00021917,2]
[329803567,1718682655922,-636.23,0.00021917,2]
[329803568,1718682655933,-165.22,0.00021918,2]
[329803569,1718682655943,-250.0,0.00021918,2]
[329803570,1718682655953,-460.81,0.00021918,2]
[329803571,1718682655963,-898.88,0.00021934,2]
[329803572,1718682655973,-1856.92345,0.0002197,2]
[329803573,1718682655983,-151.0,0.00021974,2]
[329803574,1718682655992,-767.40991608,0.00022,10]
[329803575,1718682656002,-791.61101714,0.00022,2]
[329803576,1718682656011,-32430.63558338,0.00022,2]
[329803577,1718682656022,-500.0,0.00022,2]
[329803578,1718682656032,-1048.70450835,0.00022,2]
[329803579,1718682656042,-447.7334154,0.00022,2]
[329803580,1718682656052,-151.0,0.00022,7]
[329803581,1718682656063,-229.744095,0.00022,7]
[329803582,1718682656074,-290.021797,0.00022,7]
[329803583,1718682656083,-290.021797,0.00022,7]
[329803584,1718682656092,-151.0,0.00022,7]
[329803585,1718682656102,-500.0,0.00022014,2]
[329803586,1718682656112,-6581.82092329,0.00022091,2]
[329803587,1718682656123,-200.0,0.00022161,2]
[329803588,1718682656132,-200.0,0.00022181,7]
[329803589,1718682656141,-214.3603755,0.00022181,7]
[329803590,1718682656151,-883.38,0.00022182,3]
[329803591,1718682656160,-166.274375,0.00022183,7]
[329803592,1718682656169,-151.0,0.00022183,7]
[329803593,1718682656180,-151.0,0.00022183,7]
[329803594,1718682656189,-151.0,0.00022183,7]
[329803595,1718682656198,-151.0,0.00022183,7]
[329803596,1718682656210,-151.0,0.00022183,7]
[329803597,1718682656220,-151.0,0.00022183,7]
[329803598,1718682656230,-151.0,0.00022183,7]
[329803599,1718682656239,-151.0,0.00022183,7]
[329803600,1718682656248,-169.724171,0.00022183,7]
[329803601,1718682656257,-4215.3395219,0.00022183,2]
[329803602,1718682656267,-2651.1524692,0.00022183,2]
[329803603,1718682656276,-1903.3531122,0.00022183,2]
[329803604,1718682656286,-21973.258258,0.00022183,2]
[329803605,1718682656300,-207.78211413,0.00022189,2]
[329803606,1718682656309,-608.25367935,0.00022189,2]
[329803607,1718682656319,-299.65164107,0.00022189,2]
[329803608,1718682656328,-2854.85718385,0.00022189,2]
[329803609,1718682656339,-267.0830592,0.00022189,2]
[329803610,1718682656349,-1912.36787338,0.00022189,2]
[329803611,1718682656360,-500.0,0.00022189,3]
[329803612,1718682656371,-500.0,0.00022189,3]
[329803613,1718682656388,-455.80676039,0.0002219,2]
[329803614,1718682656398,-151.0,0.0002219,7]
[329803615,1718682656408,-1000.0,0.0002219,2]
[329803616,1718682656418,-783.5495882,0.0002219,2]
[329803617,1718682656427,-500.0,0.0002219,3]
[329803618,1718682656437,-500.0,0.0002219,3]
[329803619,1718682656448,-500.0,0.0002219,3]
[329803620,1718682656458,-500.0,0.0002219,3]
[329803621,1718682656467,-500.0,0.0002219,3]
[329803622,1718682656476,-500.0,0.0002219,3]
[329803623,1718682656485,-500.0,0.0002219,3]
[329803624,1718682656497,-215.07083067,0.0002219,3]
[329803625,1718682656506,-883.38,0.0002219,3]
[329803626,1718682656515,-883.38,0.0002219,3]
[329803627,1718682656526,-883.38,0.0002219,3]
[329803628,1718682656534,-883.38,0.0002219,3]
[329803629,1718682656544,-1367.58066228,0.00022191,2]
[329803630,1718682656554,-485.0986803,0.00022191,3]
[329803631,1718682656565,-500.0,0.00022191,3]
[329803632,1718682656576,-559.08516139,0.00022191,3]
[329803633,1718682656586,-500.0,0.00022191,3]
[329803634,1718682656595,-500.0,0.00022191,3]
[329803635,1718682656606,-611.19945604,0.00022191,3]
[329803636,1718682656615,-167.90195779,0.00022191,2]
[329803637,1718682656624,-500.0,0.00022191,3]
[329803638,1718682656634,-530.86186744,0.00022191,3]
[329803639,1718682656644,-547.37444194,0.00022191,3]
[329803640,1718682656654,-334.70947039,0.00022191,3]
[329803641,1718682656663,-496.14783664,0.00022191,3]
[329803642,1718682656674,-568.92549132,0.00022191,3]
[329803643,1718682656684,-553.56724771,0.00022191,3]
[329803644,1718682656694,-500.0,0.00022191,3]
[329803645,1718682656705,-549.92324614,0.00022191,3]
[329803646,1718682656714,-500.0,0.00022191,3]
[329803647,1718682656724,-500.0,0.00022191,3]
[329803648,1718682656733,-500.0,0.00022191,3]
[329803649,1718682656743,-500.0,0.00022191,3]
[329803650,1718682656752,-500.0,0.00022191,3]
[329803651,1718682656762,-500.0,0.00022191,3]
[329803652,1718682656771,-500.0,0.00022191,3]
[329803653,1718682656784,-500.0,0.00022191,3]
[329803654,1718682656793,-525.25205669,0.00022191,3]
[329803655,1718682656803,-508.37668303,0.00022191,3]
[329803656,1718682656812,-239.79464584,0.00022191,3]
[329803657,1718682656821,-500.0,0.00022191,3]
[329803658,1718682656830,-406.29658811,0.00022191,3]
[329803659,1718682656839,-595.67,0.00022191,3]
[329803660,1718682656848,-500.0,0.00022191,3]
[329803661,1718682656857,-500.0,0.00022191,3]
[329803662,1718682656866,-585.47,0.00022191,3]
[329803663,1718682656877,-500.0,0.00022191,3]
[329803664,1718682656887,-500.0,0.00022191,3]
[329803665,1718682657080,-500.0,0.00022191,3]
[329803666,1718682657090,-500.0,0.00022191,3]
[329803667,1718682657100,-547.47644967,0.00022191,3]
[329803668,1718682657109,-501.95,0.00022191,3]
[329803669,1718682657119,-151.0,0.00022191,7]
[329803670,1718682657129,-151.0,0.00022191,7]
[329803671,1718682657139,-151.0,0.00022191,7]
[329803672,1718682657149,-500.0,0.00022191,3]
[329803673,1718682657158,-500.0,0.00022191,3]
[329803674,1718682657169,-553.53928131,0.00022191,3]
[329803675,1718682657179,-416.37891508,0.00022191,3]
[329803676,1718682657188,-500.0,0.00022191,3]
[329803677,1718682657198,-500.0,0.00022191,3]
[329803678,1718682657208,-500.0,0.00022191,3]
[329803679,1718682657217,-522.67346712,0.00022191,3]
[329803680,1718682657228,-500.0,0.00022191,3]
[329803681,1718682657238,-505.73756187,0.00022191,3]
[329803682,1718682657247,-500.0,0.00022191,3]
[329803683,1718682657257,-500.0,0.00022191,3]
[329803684,1718682657268,-500.0,0.00022191,3]
[329803685,1718682657278,-500.0,0.00022191,3]
[329803686,1718682657289,-525.69636221,0.00022191,3]
[329803687,1718682657302,-500.0,0.00022191,3]
[329803688,1718682657320,-500.0,0.00022191,3]
[329803689,1718682657331,-500.0,0.00022191,3]
[329803690,1718682657343,-582.48,0.00022191,3]
[329803691,1718682657354,-518.90514696,0.00022191,3]
[329803692,1718682657365,-500.0,0.00022191,3]
[329803693,1718682657374,-500.0,0.00022191,3]
[329803694,1718682657384,-500.0,0.00022191,3]
[329803695,1718682657394,-500.0,0.00022191,3]
[329803696,1718682657404,-500.0,0.00022191,3]
[329803697,1718682657414,-506.04073387,0.00022191,3]
[329803698,1718682657423,-500.0,0.00022191,3]
[329803699,1718682657433,-500.0,0.00022191,3]
[329803700,1718682657442,-500.0,0.00022191,3]
[329803701,1718682657451,-548.14021714,0.00022191,3]
[329803702,1718682657461,-717.98,0.00022191,3]
[329803703,1718682657471,-500.0,0.00022191,3]
[329803704,1718682657480,-500.0,0.00022191,3]
[329803705,1718682657490,-165.748583,0.00022191,7]
[329803706,1718682657499,-500.0,0.00022191,3]
[329803707,1718682657508,-431.00693553,0.00022191,3]
[329803708,1718682657518,-778.79,0.00022191,3]
[329803709,1718682657527,-500.0,0.00022191,3]
[329803710,1718682657537,-562.19,0.00022191,3]
[329803711,1718682657546,-500.0,0.00022191,3]
[329803712,1718682657555,-500.0,0.00022191,3]
[329803713,1718682657565,-500.0,0.00022191,3]
[329803714,1718682657574,-158.566244,0.00022191,7]
[329803715,1718682657583,-500.0,0.00022191,3]
[329803716,1718682657593,-500.0,0.00022191,3]
[329803717,1718682657603,-500.0,0.00022191,3]
[329803718,1718682657612,-500.0,0.00022191,3]
[329803719,1718682657621,-500.0,0.00022191,3]
[329803720,1718682657631,-500.0,0.00022191,3]
[329803721,1718682657641,-500.0,0.00022191,3]
[329803722,1718682657650,-500.0,0.00022191,3]
[329803723,1718682657660,-649.76012182,0.00022191,3]